bitfinex/quotes_SOLUSD_20220311
["timestamp","ask_amount","ask_price","bid_price","bid_amount"]
[1646977638955,6.157,81.224,81.18,18.4699]
[1646977639355,6.157,81.225,81.18,18.4699]
[1646977640356,23.4277,81.226,81.19,18.468]
[1646977640960,24.9843,81.239,81.18,3.04447957]
[1646977641158,24.9843,81.239,81.19,3.04447957]
[1646977641358,24.9843,81.239,81.191,6.0]
[1646977641559,24.9843,81.239,81.2,18.4643]
[1646977641759,29.4053,81.259,81.191,6.0]
[1646977641961,29.599,81.258,81.192,27.78507957]
[1646977642160,6.155,81.257,81.193,6.0]
[1646977642364,6.155,81.257,81.193,9.04447957]
[1646977642560,1.69091208,81.288,81.193,9.04447957]
[1646977642561,6.155,81.269,81.22,18.4612]
[1646977642759,1.69091208,81.293,81.22,18.4612]
[1646977642760,53.0013,81.289,81.22,18.4612]
[1646977643763,57.90303155,81.288,81.22,18.4612]
[1646977643964,12.152,81.287,81.22,18.4612]
[1646977644164,12.152,81.287,81.221,23.6716]
[1646977644363,18.4598,81.28,81.221,23.6716]
[1646977644567,6.152,81.279,81.221,23.6716]
[1646977644967,6.152,81.286,81.221,23.6716]
[1646977645366,18.462,81.27,81.221,23.6716]
[1646977645565,6.154,81.269,81.221,23.6716]
[1646977645966,6.154,81.285,81.221,23.6716]
[1646977646368,18.4602,81.28,81.221,23.6716]
[1646977646567,6.152,81.279,81.221,23.6716]
[1646977646866,133.19647957,81.279,81.193,6.0]
[1646977647073,124.0,81.269,81.189,26.04607447]
[1646977647272,124.0,81.262,81.174,23.6716]
[1646977647475,124.0,81.259,81.174,23.6716]
[1646977647673,124.0,81.257,81.174,23.6716]
[1646977647873,6.156,81.256,81.174,23.6716]
[1646977648074,124.0,81.255,81.174,23.6716]
[1646977648273,14.54,81.25,81.174,23.6716]
[1646977648673,6.156,81.249,81.174,23.6716]
[1646977648874,24.9869,81.248,81.174,23.6716]
[1646977649074,6.156,81.247,81.174,23.6716]
[1646977649274,24.9869,81.248,81.174,23.6716]
[1646977650176,18.471,81.24,81.18,18.4698]
[1646977650972,6.0,81.239,81.18,18.4698]
[1646977651173,49.14268347,81.238,81.18,18.4698]
[1646977651374,18.4712,81.23,81.174,23.6716]
[1646977653190,18.4712,81.23,81.18,18.4696]
[1646977653393,18.4712,81.23,81.174,23.6716]
[1646977653593,18.4712,81.23,81.12,14.54]
[1646977653796,9.20247957,81.229,81.09,14.54]
[1646977653996,9.20247957,81.229,81.104,124.0]
[1646977654196,124.0,81.228,81.1,18.4849]
[1646977654394,6.158,81.227,81.102,47.904]
[1646977654596,79.65666901,81.227,81.102,47.904]
[1646977654795,124.0,81.226,81.102,47.904]
[1646977654997,6.16,81.225,81.103,9.04447957]
[1646977655294,124.0,81.209,81.12,18.4819]
[1646977655494,188.20551838,81.207,81.121,24.1797]
[1646977655695,6.16,81.206,81.121,24.1797]
[1646977656097,6.16,81.206,81.122,9.04447957]
[1646977656308,64.20551838,81.207,81.13,18.4812]
[1646977656897,124.0,81.206,81.13,18.4812]
[1646977657097,18.478,81.2,81.122,6.0]
[1646977657296,64.20551838,81.207,81.122,6.0]
[1646977657897,130.16,81.206,81.121,24.1797]
[1646977658298,18.4838,81.18,81.121,24.1797]
[1646977658498,6.0,81.179,81.121,24.1797]
[1646977660901,18.4846,81.17,81.121,24.1797]
[1646977661401,54.77208796,81.189,81.121,24.1797]
[1646977661601,6.16,81.188,81.121,27.22417957]
[1646977662000,6.0,81.187,81.121,27.22417957]
[1646977662200,6.16,81.186,81.121,27.22417957]
[1646977662401,6.0,81.185,81.121,27.22417957]
[1646977662602,6.16,81.186,81.121,27.22417957]
[1646977662603,6.16,81.184,81.121,27.22417957]
[1646977662799,6.16,81.197,81.121,27.22417957]
[1646977663000,6.0,81.196,81.13,18.4813]
[1646977663201,6.16,81.198,81.131,6.0]
[1646977663400,6.16,81.198,81.132,6.16]
[1646977663604,6.16,81.227,81.133,6.0]
[1646977663808,6.0,81.226,81.133,6.0]
[1646977664001,12.159,81.225,81.14,18.4787]
[1646977664202,62.09743465,81.225,81.141,6.0]
[1646977664404,86.98865551,81.225,81.141,6.0]
[1646977664605,24.89122086,81.224,81.141,6.0]
[1646977664806,6.158,81.223,81.141,6.0]
[1646977666106,6.158,81.223,81.142,3.04447957]
[1646977666507,6.158,81.224,81.142,3.04447957]
[1646977666911,6.158,81.224,81.143,6.0]
[1646977667110,6.0,81.223,81.143,6.0]
[1646977667310,14.54,81.22,81.143,9.04447957]
[1646977667510,14.54,81.22,81.132,6.16]
[1646977667714,6.159,81.219,81.133,6.0]
[1646977667909,6.159,81.219,81.133,9.04447957]
[1646977668109,6.159,81.219,81.134,124.0]
[1646977668312,6.159,81.219,81.135,6.0]
[1646977668511,6.159,81.222,81.15,61.5721]
[1646977668713,6.159,81.222,81.151,6.0]
[1646977668912,6.159,81.222,81.151,130.0]
[1646977669114,6.158,81.249,81.151,133.04447957]
[1646977669312,6.157,81.254,81.153,124.0]
[1646977669513,6.157,81.263,81.155,124.0]
[1646977669714,53.13243318,81.285,81.17,14.54]
[1646977669914,53.13243318,81.285,81.158,74.47]
[1646977669915,53.13243318,81.285,81.18,14.54]
[1646977670118,6.155,81.284,81.181,130.25]
[1646977670321,6.155,81.284,81.181,160.30388737]
[1646977670514,6.155,81.284,81.182,27.2594078]
[1646977670738,6.155,81.284,81.183,130.0]
[1646977670913,6.0,81.283,81.183,133.04447957]
[1646977671115,18.4598,81.28,81.21,18.4626]
[1646977671317,6.154,81.279,81.21,18.4626]
[1646977671717,6.154,81.282,81.21,18.4626]
[1646977672120,6.154,81.282,81.19,61.54]
[1646977672323,18.4622,81.27,81.2,18.4645]
[1646977672521,6.154,81.269,81.2,18.4645]
[1646977672924,6.155,81.279,81.2,18.4645]
[1646977673325,6.155,81.279,81.21,18.4623]
[1646977674529,18.4623,81.27,81.2,18.4647]
[1646977674929,6.154,81.269,81.2,18.4647]
[1646977675129,6.0,81.269,81.2,18.4647]
[1646977675534,6.155,81.268,81.2,18.4647]
[1646977675829,6.0,81.269,81.2,18.4647]
[1646977676031,18.465,81.26,81.2,18.4647]
[1646977676831,71.4832189,81.26,81.2,18.4647]
[1646977677431,18.465,81.26,81.2,18.4647]
[1646977678242,18.465,81.26,81.201,6.0]
[1646977679245,18.465,81.26,81.2,18.4647]
[1646977679649,18.465,81.26,81.201,6.155]
[1646977681946,6.0,81.259,81.202,6.0]
[1646977682347,6.0,81.259,81.2,18.4647]
[1646977684351,6.0,81.259,81.201,24.8858]
[1646977684849,18.4665,81.25,81.201,24.8858]
[1646977685649,6.0,81.249,81.201,24.8858]
[1646977686959,12.155,81.249,81.201,24.8858]
[1646977687354,6.0,81.249,81.201,24.8858]
[1646977691058,6.0,81.249,81.19,18.4665]
[1646977691263,18.4694,81.24,81.189,24.7562]
[1646977691460,78.84241648,81.24,81.189,24.7562]
[1646977693158,18.4694,81.24,81.188,6.155]
[1646977693360,6.156,81.239,81.188,6.155]
[1646977693562,18.4792,81.23,81.188,6.155]
[1646977693760,130.156,81.229,81.151,24.8295]
[1646977693961,180.51777717,81.229,81.151,24.8295]
[1646977694161,124.0,81.227,81.151,24.8295]
[1646977694369,6.158,81.226,81.151,24.8295]
[1646977694965,6.0,81.225,81.151,24.8295]
[1646977695164,62.21099202,81.228,81.151,24.8295]
[1646977695365,12.158,81.227,81.151,24.8295]
[1646977695764,6.0,81.227,81.151,24.8295]
[1646977696261,6.0,81.227,81.152,24.0663]
[1646977697162,6.0,81.227,81.16,18.4724]
[1646977697563,6.158,81.226,81.16,18.4724]
[1646977699064,6.0,81.225,81.16,18.4724]
[1646977699263,6.158,81.224,81.16,18.4724]
[1646977700264,6.0,81.225,81.16,18.4724]
[1646977700870,6.158,81.227,81.16,18.4724]
[1646977701076,6.0,81.226,81.152,24.0663]
[1646977701366,6.0,81.226,81.17,18.4719]
[1646977701765,6.0,81.226,81.152,24.0663]
[1646977703367,6.158,81.225,81.152,24.0663]
[1646977703768,6.158,81.227,81.152,24.0663]
[1646977704371,33.0263,81.22,81.152,24.0663]
[1646977704570,130.158,81.219,81.125,23.9288]
[1646977704772,192.92287276,81.219,81.126,6.0]
[1646977704970,124.0,81.217,81.126,6.0]
[1646977705170,6.159,81.216,81.126,6.0]
[1646977705371,124.0,81.215,81.126,6.0]
[1646977705570,61.6113,81.2,81.126,6.0]
[1646977705771,62.09189551,81.198,81.126,6.0]
[1646977706074,6.16,81.197,81.126,6.0]
[1646977707176,18.4834,81.19,81.13,18.4819]
[1646977707370,6.16,81.189,81.13,18.4819]
[1646977707571,6.16,81.195,81.126,6.0]
[1646977708972,3.04447957,81.194,81.126,6.0]
[1646977709275,18.4831,81.18,81.13,18.4814]
[1646977709674,6.16,81.195,81.13,18.4814]
[1646977709872,6.0,81.196,81.131,30.4282]
[1646977710072,6.0,81.196,81.132,6.0]
[1646977710271,6.0,81.196,81.15,18.4767]
[1646977710272,6.16,81.195,81.15,18.4767]
[1646977710873,6.159,81.198,81.15,18.4767]
[1646977711076,24.1399,81.199,81.15,18.4767]
[1646977711574,6.159,81.211,81.15,18.4767]
[1646977711773,30.344,81.215,81.151,24.4282]
[1646977712573,6.158,81.228,81.152,133.04447957]
[1646977712973,6.158,81.244,81.153,3.04447957]
[1646977713273,6.158,81.244,81.18,18.4689]
[1646977713475,6.158,81.244,81.181,22.8772]
[1646977713674,6.158,81.244,81.182,124.0]
[1646977713878,6.156,81.265,81.183,6.0]
[1646977714076,6.156,81.265,81.184,124.0]
[1646977714275,6.155,81.284,81.185,6.0]
[1646977714476,6.155,81.284,81.185,159.87055404]
[1646977714874,52.06558257,81.283,81.186,3.04447957]
[1646977715074,18.4612,81.28,81.22,18.4612]
[1646977715276,6.152,81.279,81.22,18.4612]
[1646977715677,6.152,81.284,81.22,18.4612]
[1646977716379,6.152,81.284,81.23,18.4586]
[1646977716675,6.152,81.306,81.23,18.4586]
[1646977716878,6.0,81.305,81.23,18.4586]
[1646977717076,6.152,81.304,81.231,6.0]
[1646977717276,6.152,81.321,81.231,6.0]
[1646977717481,24.451,81.32,81.25,18.451]
[1646977717676,6.151,81.319,81.25,18.451]
[1646977718078,6.151,81.319,81.251,6.0]
[1646977718277,24.451,81.32,81.251,6.0]
[1646977718478,24.451,81.32,81.241,6.0]
[1646977718882,6.151,81.337,81.241,6.0]
[1646977718883,18.449,81.33,81.26,18.4508]
[1646977719080,6.15,81.329,81.261,6.0]
[1646977719503,23.41788753,81.345,81.261,6.0]
[1646977719504,6.15,81.342,81.261,6.0]
[1646977719679,6.15,81.342,81.253,124.0]
[1646977719879,6.15,81.342,81.254,6.0]
[1646977720282,6.15,81.342,81.255,3.04447957]
[1646977720481,6.15,81.342,81.256,6.0]
[1646977721087,18.4472,81.34,81.28,18.4463]
[1646977721287,6.149,81.339,81.281,6.0]
[1646977721690,6.149,81.339,81.262,124.0]
[1646977721887,6.149,81.339,81.261,23.9688]
[1646977721888,6.15,81.347,81.271,124.0]
[1646977722092,6.149,81.365,81.272,6.0]
[1646977722289,6.149,81.365,81.274,124.0]
[1646977722489,6.0,81.364,81.275,6.0]
[1646977722690,6.148,81.363,81.275,6.0]
[1646977722890,6.0,81.362,81.275,9.04447957]
[1646977723091,6.148,81.361,81.29,18.4442]
[1646977723291,6.148,81.367,81.291,6.0]
[1646977723490,6.148,81.367,81.291,9.04447957]
[1646977723793,6.148,81.367,81.292,3.04447957]
[1646977723996,6.148,81.367,81.31,18.4389]
[1646977724190,6.148,81.367,81.311,6.0]
[1646977724393,6.147,81.389,81.311,6.0]
[1646977724892,6.147,81.389,81.302,6.0]
[1646977725090,6.147,81.389,81.32,18.4357]
[1646977725290,6.147,81.389,81.321,6.0]
[1646977725490,6.147,81.389,81.32,18.4357]
[1646977725891,18.4392,81.38,81.301,46.4277]
[1646977726090,6.146,81.379,81.302,6.0]
[1646977726292,6.0,81.378,81.302,6.0]
[1646977726493,6.147,81.377,81.31,18.4378]
[1646977726692,6.147,81.377,81.311,6.0]
[1646977727519,6.147,81.377,81.32,18.4358]
[1646977727712,6.147,81.377,81.321,6.0]
[1646977727914,6.146,81.392,81.321,6.0]
[1646977728113,18.4371,81.39,81.321,6.0]
[1646977728313,53.74033306,81.389,81.302,6.0]
[1646977728514,102.33000863,81.389,81.302,6.0]
[1646977728713,105.3744882,81.389,81.302,6.0]
[1646977728915,23.41788753,81.388,81.302,6.0]
[1646977729117,6.146,81.387,81.302,6.0]
[1646977729519,6.146,81.387,81.271,3.04447957]
[1646977729520,132.8408,81.38,81.271,3.04447957]
[1646977729719,29.8891,81.379,81.272,48.9535]
[1646977729923,53.30698753,81.379,81.272,48.9535]
[1646977730115,81.52325514,81.379,81.272,48.9535]
[1646977730317,51.63415514,81.378,81.272,48.9535]
[1646977730520,18.4485,81.35,81.272,48.9535]
[1646977730719,6.148,81.377,81.273,3.29447957]
[1646977730916,3.04447957,81.377,81.274,6.0]
[1646977731119,6.0,81.376,81.274,34.37537024]
[1646977731318,23.7411,81.379,81.275,3.04447957]
[1646977731519,6.0,81.378,81.28,32.9842]
[1646977731720,6.147,81.377,81.281,6.0]
[1646977731918,6.147,81.377,81.281,9.04447957]
[1646977732121,51.9488506,81.376,81.282,27.55737957]
[1646977732318,6.147,81.375,81.283,6.0]
[1646977732519,6.147,81.375,81.283,9.04447957]
[1646977732819,6.147,81.375,81.284,3.04447957]
[1646977733020,14.54,81.39,81.291,124.0]
[1646977733021,6.147,81.377,81.291,124.0]
[1646977733221,6.147,81.389,81.292,6.0]
[1646977733421,6.0,81.388,81.294,124.0]
[1646977733619,6.146,81.387,81.295,6.0]
[1646977734022,60.02550409,81.386,81.295,6.0]
[1646977734223,6.146,81.391,81.295,6.0]
[1646977734224,6.146,81.385,81.31,18.4362]
[1646977734421,6.146,81.391,81.31,18.4362]
[1646977735022,6.146,81.391,81.311,24.933]
[1646977735224,68.01252183,81.39,81.311,24.933]
[1646977735421,6.146,81.389,81.311,24.933]
[1646977737027,6.146,81.389,81.32,18.4362]
[1646977737524,6.0,81.388,81.312,23.2177]
[1646977737726,6.146,81.387,81.312,23.2177]
[1646977738425,6.146,81.387,81.313,6.0]
[1646977738625,18.4383,81.38,81.313,6.0]
[1646977738827,6.146,81.379,81.312,23.2177]
[1646977741029,6.0,81.378,81.312,23.2177]
[1646977741229,6.146,81.377,81.312,23.2177]
[1646977742531,6.0,81.378,81.313,6.0]
[1646977743132,18.4383,81.38,81.312,23.2177]
[1646977743332,6.0,81.379,81.313,6.0]
[1646977743532,18.4402,81.37,81.313,6.0]
[1646977743732,18.4402,81.37,81.312,23.2177]
[1646977744335,133.19047957,81.369,81.252,124.0]
[1646977744536,18.4457,81.35,81.269,54.9804]
[1646977744731,48.76482958,81.348,81.269,48.9804]
[1646977744932,6.149,81.347,81.269,48.9804]
[1646977745935,18.4466,81.34,81.27,18.4484]
[1646977746835,24.0221,81.349,81.27,18.4484]
[1646977747041,6.0,81.348,81.29,18.4359]
[1646977747240,24.0221,81.349,81.291,6.0]
[1646977747441,24.3513,81.368,81.291,61.20144471]
[1646977747640,6.0,81.367,81.292,24.0427]
[1646977747840,6.0,81.367,81.293,6.0]
[1646977748041,6.0,81.367,81.3,18.4374]
[1646977748343,6.0,81.367,81.301,6.0]
[1646977748842,6.0,81.367,81.295,6.0]
[1646977749244,6.0,81.367,81.296,3.04447957]
[1646977749444,130.0,81.367,81.297,6.0]
[1646977749646,133.04447957,81.367,81.292,24.0427]
[1646977749944,124.0,81.365,81.292,24.0427]
[1646977750145,1.69091208,81.363,81.293,6.0]
[1646977750343,1.69091208,81.361,81.292,24.0427]
[1646977750542,18.4485,81.34,81.293,6.0]
[1646977750744,48.69512987,81.339,81.27,41.8024]
[1646977750943,78.97142987,81.339,81.271,6.0]
[1646977751144,72.82242987,81.339,81.271,9.04447957]
[1646977751343,72.82242987,81.339,81.272,3.04447957]
[1646977751744,72.82242987,81.339,81.28,18.4472]
[1646977752148,18.4485,81.33,81.272,3.04447957]
[1646977752646,18.4485,81.33,81.27,23.3537]
[1646977752845,6.15,81.329,81.27,23.3537]
[1646977753263,72.82242987,81.339,81.27,23.3537]
[1646977753264,18.4532,81.32,81.27,23.3537]
[1646977753864,6.0,81.319,81.27,23.3537]
[1646977754967,6.0,81.328,81.27,23.3537]
[1646977755166,6.0,81.336,81.27,23.3537]
[1646977755366,6.0,81.336,81.27,26.39817957]
[1646977755567,6.0,81.336,81.272,124.0]
[1646977755768,6.149,81.369,81.29,18.4419]
[1646977755965,18.4432,81.36,81.291,22.8049]
[1646977756168,6.148,81.359,81.291,22.8049]
[1646977756567,6.148,81.367,81.291,22.8049]
[1646977756968,6.148,81.367,81.292,6.0]
[1646977757170,6.148,81.367,81.3,18.4405]
[1646977757372,6.147,81.375,81.3,18.4405]
[1646977757570,6.147,81.375,81.301,9.04447957]
[1646977757769,6.147,81.389,81.302,124.0]
[1646977757971,6.147,81.389,81.303,6.0]
[1646977758169,6.147,81.389,81.32,18.4314]
[1646977758368,6.147,81.389,81.321,6.0]
[1646977758569,6.0,81.388,81.321,6.0]
[1646977758768,6.144,81.387,81.321,6.0]
[1646977758969,6.144,81.387,81.312,6.0]
[1646977759169,6.144,81.387,81.321,3.04447957]
[1646977759369,6.144,81.387,81.322,6.0]
[1646977759572,6.144,81.387,81.34,18.4319]
[1646977760174,6.0,81.388,81.322,6.0]
[1646977760473,6.0,81.388,81.289,62.02]
[1646977760474,18.4373,81.38,81.311,3.04447957]
[1646977760675,18.4373,81.38,81.293,3.04447957]
[1646977760875,6.146,81.379,81.303,6.0]
[1646977761085,6.0,81.388,81.303,6.0]
[1646977761375,6.0,81.388,81.304,3.04447957]
[1646977761578,6.0,81.388,81.311,124.0]
[1646977761776,24.2581,81.405,81.312,6.0]
[1646977761977,58.41776265,81.404,81.312,9.04447957]
[1646977762377,58.41776265,81.404,81.313,3.04447957]
[1646977762579,6.144,81.403,81.314,6.0]
[1646977762979,6.0,81.402,81.314,9.04447957]
[1646977763179,18.4327,81.4,81.33,18.4308]
[1646977763379,6.0,81.399,81.33,18.4308]
[1646977763580,6.0,81.398,81.33,18.4308]
[1646977763780,64.22299126,81.4,81.33,18.4308]
[1646977763980,6.0,81.399,81.33,18.4308]
[1646977764180,24.2581,81.405,81.33,18.4308]
[1646977764381,18.4353,81.39,81.33,18.3987576]
[1646977766381,6.144,81.389,81.33,18.3987576]
[1646977766784,6.144,81.389,81.331,6.0]
[1646977766984,18.4372,81.38,81.331,6.0]
[1646977767182,18.4372,81.38,81.33,18.3987576]
[1646977767789,6.144,81.399,81.33,18.3987576]
[1646977768385,18.4353,81.39,81.315,22.5771]
[1646977768587,6.146,81.389,81.315,22.5771]
[1646977768985,9.19047957,81.389,81.315,22.5771]
[1646977769186,3.04447957,81.388,81.315,22.5771]
[1646977769391,6.146,81.387,81.315,22.5771]
[1646977769587,18.4414,81.37,81.315,22.5771]
[1646977769787,24.4886,81.386,81.315,22.5771]
[1646977769988,12.146,81.385,81.315,22.5771]
[1646977770791,63.58620603,81.384,81.315,22.5771]
[1646977770989,6.146,81.383,81.315,22.5771]
[1646977771188,18.4376,81.38,81.32,18.4384]
[1646977771389,6.146,81.379,81.32,18.4384]
[1646977773590,6.0,81.378,81.32,18.4384]
[1646977773789,6.146,81.377,81.32,18.4384]
[1646977777190,6.146,81.379,81.32,18.4384]
[1646977778195,6.146,81.385,81.32,18.4384]
[1646977779095,6.0,81.384,81.32,18.4384]
[1646977779292,6.146,81.383,81.32,18.4384]
[1646977780095,18.4375,81.38,81.32,18.4384]
[1646977781699,18.4396,81.37,81.32,18.4384]
[1646977781998,52.38959122,81.368,81.32,18.4384]
[1646977782699,52.38959122,81.368,81.27,76.0185]
[1646977782997,18.4423,81.36,81.289,23.8113]
[1646977783200,18.4423,81.36,81.303,6.0]
[1646977783397,18.4423,81.36,81.289,23.8113]
[1646977783598,18.4423,81.36,81.303,6.0]
[1646977783798,18.4423,81.36,81.289,23.8113]
[1646977784099,18.4423,81.36,81.3,18.4431]
[1646977784299,6.0,81.359,81.3,18.4431]
[1646977784902,6.0,81.359,81.289,23.8113]
[1646977786207,6.0,81.359,81.31,18.4408]
[1646977787207,24.686,81.367,81.31,18.4408]
[1646977787907,6.0,81.366,81.31,18.4408]
[1646977788311,18.4414,81.36,81.31,18.4408]
[1646977790418,18.4414,81.36,81.3,18.4425]
[1646977791417,6.147,81.359,81.303,3.04447957]
[1646977791817,6.147,81.359,81.3,18.4425]
[1646977792019,6.147,81.359,81.303,6.0]
[1646977792218,6.147,81.359,81.3,18.4425]
[1646977792618,6.147,81.359,81.303,6.0]
[1646977792818,6.147,81.359,81.3,18.4425]
[1646977793218,6.147,81.359,81.303,6.0]
[1646977793420,6.147,81.359,81.3,18.4425]
[1646977795034,6.0,81.358,81.31,18.4406]
[1646977795235,6.147,81.357,81.289,23.8113]
[1646977796038,18.4441,81.35,81.3,18.4416]
[1646977796236,56.70441366,81.349,81.289,23.8113]
[1646977796436,6.148,81.348,81.289,23.8113]
[1646977797238,18.4489,81.34,81.289,23.8113]
[1646977798039,6.148,81.348,81.289,23.8113]
[1646977798241,6.148,81.348,81.29,18.4454]
[1646977799940,18.4462,81.34,81.29,18.4454]
[1646977800541,18.4462,81.34,81.291,6.0]
[1646977800842,18.4462,81.34,81.29,18.4454]
[1646977801941,6.148,81.348,81.29,18.4454]
[1646977802141,18.4444,81.35,81.29,18.4454]
[1646977802342,6.0,81.349,81.29,18.4454]
[1646977803145,6.148,81.369,81.31,18.4358]
[1646977803345,6.147,81.376,81.31,18.4358]
[1646977803547,30.7494,81.378,81.376,0.02564247]
[1646977803948,0.037974,81.377,81.376,0.02564247]
[1646977806047,6.037974,81.377,81.376,0.02564247]
[1646977806746,12.181974,81.377,81.376,0.02564247]
[1646977808751,45.0,81.376,81.301,24.8217]
[1646977808948,18.4464,81.36,81.301,24.8217]
[1646977809747,52.36246558,81.359,81.301,24.8217]
[1646977810757,18.4437,81.35,81.301,24.8217]
[1646977811156,6.0,81.349,81.301,24.8217]
[1646977812960,18.4469,81.34,81.272,3.04447957]
[1646977813158,18.4469,81.34,81.261,23.2469]
[1646977813359,6.149,81.339,81.261,23.2469]
[1646977813764,6.149,81.347,81.261,23.2469]
[1646977814160,9.19347957,81.347,81.261,23.2469]
[1646977814362,3.04447957,81.346,81.261,23.2469]
[1646977814563,6.149,81.345,81.261,23.2469]
[1646977814966,18.4502,81.33,81.27,18.4486]
[1646977815166,51.12251652,81.329,81.27,18.4486]
[1646977816974,6.0,81.328,81.27,18.4486]
[1646977817171,18.4509,81.32,81.271,24.2243]
[1646977818174,6.15,81.327,81.271,24.2243]
[1646977819175,6.15,81.328,81.271,24.2243]
[1646977820176,18.4506,81.32,81.271,24.2243]
[1646977820476,12.15,81.319,81.271,24.2243]
[1646977821295,6.0,81.319,81.271,24.2243]
[1646977821499,51.12251652,81.329,81.271,24.2243]
[1646977821695,6.0,81.328,81.271,24.2243]
[1646977821898,6.15,81.327,81.271,24.2243]
[1646977822501,18.4508,81.32,81.271,24.2243]
[1646977822698,6.15,81.319,81.271,24.2243]
[1646977825000,6.15,81.328,81.271,24.2243]
[1646977825201,6.15,81.329,81.271,24.2243]
[1646977825498,6.15,81.337,81.271,24.2243]
[1646977825697,24.1439,81.338,81.271,24.2243]
[1646977826900,24.1439,81.338,81.272,6.0]
[1646977827098,18.4485,81.33,81.28,18.4477]
[1646977827699,6.0,81.337,81.28,18.4477]
[1646977828100,18.4486,81.33,81.271,24.2243]
[1646977828303,50.58074732,81.329,81.271,24.2243]
[1646977828702,6.15,81.328,81.271,24.2243]
[1646977829304,6.15,81.328,81.28,18.4474]
[1646977830510,6.15,81.328,81.271,24.2243]
[1646977832006,6.0,81.327,81.271,24.2243]
[1646977832508,6.0,81.326,81.271,24.2243]
[1646977832806,50.58074732,81.329,81.271,24.2243]
[1646977833011,6.0,81.328,81.271,24.2243]
[1646977835018,6.0,81.327,81.28,18.4473]
[1646977835217,6.149,81.337,81.28,18.4473]
[1646977835518,6.0,81.336,81.28,18.4473]
[1646977835713,6.149,81.335,81.28,18.4473]
[1646977835913,53.41258944,81.334,81.28,18.4473]
[1646977836516,18.4484,81.33,81.271,42.2429]
[1646977837017,18.4484,81.33,81.272,6.0]
[1646977837220,18.4484,81.33,81.271,42.2429]
[1646977838020,18.4484,81.33,81.28,18.4477]
[1646977838219,6.149,81.337,81.28,18.4477]
[1646977838418,24.1439,81.338,81.28,18.4477]
[1646977838820,24.1439,81.338,81.281,30.4928]
[1646977839018,60.92043012,81.337,81.281,30.4928]
[1646977839219,24.1439,81.338,81.281,24.4928]
[1646977839420,24.1439,81.338,81.29,18.4454]
[1646977839646,6.149,81.357,81.29,18.4454]
[1646977839845,6.148,81.366,81.291,6.0]
[1646977840046,6.148,81.366,81.292,124.0]
[1646977840246,23.5745,81.369,81.293,6.0]
[1646977840649,6.147,81.368,81.294,124.0]
[1646977840845,6.147,81.368,81.295,6.0]
[1646977841046,23.5745,81.369,81.296,124.0]
[1646977841249,23.5745,81.369,81.3,18.4396]
[1646977841447,23.5745,81.369,81.301,6.0]
[1646977841849,23.5745,81.369,81.298,6.0]